Cogmind - Beta 10.2 @@@ ROGUE MODE // 2021.05.06 @ 18:10:50 Player: Michael Result: Destroyed by Heavy Explosive Trap Performance ------------- Evolutions (0) 0 Regions Visited (4) 800 Robots Destroyed (10) 50 Value Destroyed (151) 151 Prototype IDs (23) 460 Alien Tech Used (0) 0 Bonus (300) 300 TOTAL SCORE: 1761 Bonus ------- Aligned with FarCom 300 Cogmind --------- Core Integrity 0/250 Matter 277/300 Energy 100/100 System Corruption 0% Temperature Cool (32) Movement Rolling (110) Ox3 Location -9/Mines Parts ------- > --- POWER (1) -------- (None) > --- PROPULSION (2) --- Wheel > --- UTILITY (2) ------ High-capacity Storage Unit Propulsion Shielding > --- WEAPON (2) ------- (None) > --- INVENTORY (12) --- Nuclear Core Light Fission Core Wheel Medium Storage Unit Skeleton Box EM Pulse Gun Assault Rifle Grenade Launcher Heavy Explosive Trap Peak State ------------ > --- POWER ------------ Ion Engine > --- PROPULSION ------- Wheel Wheel > --- UTILITY ---------- High-capacity Storage Unit Skeleton Box > --- WEAPON ----------- EM Pulse Gun Assault Rifle > --- INVENTORY -------- Nuclear Core Light Fission Core Light Fission Core Medium Storage Unit Large Storage Unit High-capacity Matter Pod High-capacity Matter Pod Propulsion Shielding EM Pulse Gun Grenade Launcher Heavy Explosive Trap Heavy Explosive Trap [Rating: 14] Favorites ----------- Power Ion Engine Engine Ion Engine Propulsion Aluminum Leg Leg Aluminum Leg Wheel Wheel Utility Propulsion Shielding Device Terrain Scanner Storage Large Storage Unit Protection Propulsion Shielding Weapon EM Pulse Gun Energy Gun EM Pulse Gun Ballistic Gun Assault Rifle Launcher Grenade Launcher Build | -11 -10 -10 -10 -9 ------- Run | Scr Mat Min Exi Min Slots Evolved . | . . . . . Power . | . . . . . Propulsion . | . . . . . Utility . | . . . . . Weapon . | . . . . . Parts Attached 21 | 6 5 2 5 3 Power 1 | 1 . . . . Engine 1 | 1 . . . . Core . | . . . . . Reactor . | . . . . . Propulsion 5 | 2 . . 2 1 Treads . | . . . . . Leg 2 | 2 . . . . Wheel 3 | . . . 2 1 Hover . | . . . . . Flight . | . . . . . Utility 9 | 1 3 . 3 2 Device 2 | . 1 . . 1 Storage 4 | 1 1 . 2 . Processor . | . . . . . Hackware . | . . . . . Protection 3 | . 1 . 1 1 Artifact . | . . . . . Weapon 6 | 2 2 2 . . Energy Gun 3 | 1 1 1 . . Energy Cannon . | . . . . . Ballistic Gun 1 | 1 . . . . Ballistic Cannon . | . . . . . Launcher 2 | . 1 1 . . Special Weapon . | . . . . . Impact Weapon . | . . . . . Slashing Weapon . | . . . . . Piercing Weapon . | . . . . . Special Melee Weapon . | . . . . . Unidentified Prototypes . | . . . . . Parts Lost 2 | . . . . 2 Power 1 | . . . . 1 Propulsion . | . . . . . Utility . | . . . . . Weapon 1 | . . . . 1 Highest Loss Streak 2 | . . . . 2 Average Slot Usage (%) 99 | . 98 100 100 85 Engine 14 | . 14 14 14 14 Leg 23 | . 28 28 10 . Wheel 3 | . . . 18 14 Device 1 | . 8 . . 7 Storage 14 | . 14 14 18 14 Protection 11 | . 4 14 9 7 Energy Gun 13 | . 13 14 14 14 Ballistic Gun 14 | . 14 14 14 14 Naked Turns . | . . . . . Heaviest Build 57 | 13 26 26 57 42 Greatest Support 20 | 20 20 20 20 20 Greatest Overweight (x) 3 | . 1 1 2 3 Average Overweight (x) 1 | . . 1 1 2 Largest Inventory Capacity 18 | 6 10 10 18 12 Average Capacity 9 | 5 6 10 13 12 Most Carried 14 | 4 8 10 14 12 Average Carried 9 | 2 5 9 12 11 Final Capacity 12 | 6 10 10 12 12 Final Carried 12 | 4 8 10 12 9 Class Distribution -------------------- 100% | Mutant Dominant Class ---------------- Mutant | -10/Materials Mutant | -10/Mines Mutant | -10/Exiles Mutant | -9/Mines Resources | -11 -10 -10 -10 -9 ----------- Run | Scr Mat Min Exi Min Matter Collected 788 | 245 186 257 100 . Remotely . | . . . . . Salvage Created 424 | 19 133 272 . . Parts 18 | 2 7 9 . . Haulers Intercepted . | . . . . . Recyclers Shooed . | . . . . . Parts Field Recycled . | . . . . . Retrieved Matter . | . . . . . Parts Self-Destructed . | . . . . . Prevented . | . . . . . Kills | -11 -10 -10 -10 -9 ------- Run | Scr Mat Min Exi Min Combat Hostiles Destroyed 5 | . 3 2 . . Guns 4 | . 3 1 . . AOE 1 | . . 1 . . Classes Destroyed 5 | 1 2 2 . . Builder 1 | . . 1 . . Tunneler 1 | 1 . . . . Recycler 3 | . 1 2 . . Swarmer 3 | . 3 . . . Grunt 2 | . . 2 . . Best Kill Streak 3 | 1 3 3 . . Combat Bots Only 2 | . 2 2 . . Max Kills in Single Turn 1 | 1 1 1 . . Gunslinging . | . . . . . Exploded 1 | . . 1 . . Melee . | . . . . . Uniques/NPCs Destroyed . | . . . . . Combat | -11 -10 -10 -10 -9 -------- Run | Scr Mat Min Exi Min Damage Taken 662 | . 99 103 . 460 Core 265 | . 15 31 . 219 Absorbed by Shields . | . . . . . Core Remaining (%) 100 | 100 . . . . Volleys Fired 20 | 1 10 8 . 1 Largest 2 | 1 2 2 . 2 Hottest 60 | 20 60 60 . 60 Shots Fired 36 | 1 18 15 . 2 Gun 32 | 1 16 13 . 2 Cannon . | . . . . . Launcher 4 | . 2 2 . . Special . | . . . . . Kinetic 18 | 1 8 8 . 1 Thermal . | . . . . . Explosive 4 | . 2 2 . . Electromagnetic 14 | . 8 5 . 1 Robot Hit Streak 11 | 1 3 11 . 1 Robot Miss Streak 2 | . 2 2 . 1 Penetration Max . | . . . . . Secondary Targets . | . . . . . Shots Hit Robots 21 | 1 8 11 . 1 Core Hits 16 | 1 5 9 . 1 Critical Hits . | . . . . . Critical Kills . | . . . . . Critical Parts Destroyed . | . . . . . Melee Attacks . | . . . . . Impact . | . . . . . Slashing . | . . . . . Piercing . | . . . . . Sneak Attacks . | . . . . . Combat Hostiles . | . . . . . Follow-up Attacks . | . . . . . Damage Inflicted 361 | 10 89 247 . 15 Guns 226 | 10 89 112 . 15 Cannons . | . . . . . Explosions 135 | . . 135 . . Melee . | . . . . . Ramming . | . . . . . Kinetic 121 | 10 40 56 . 15 Thermal 76 | . . 76 . . Explosive 59 | . . 59 . . Electromagnetic 105 | . 49 56 . . Impact . | . . . . . Slashing . | . . . . . Piercing . | . . . . . Highest Corruption . | . . . . . Average Corruption . | . . . . . Corruption Purged . | . . . . . Overload Shots . | . . . . . Overflow Damage . | . . . . . Projectiles . | . . . . . Explosions . | . . . . . Melee . | . . . . . Knockbacks . | . . . . . Impact . | . . . . . Kinetic . | . . . . . Secondary . | . . . . . Self-Inflicted Damage 66 | . 21 45 . . Shots 3 | . 1 2 . . Rammed . | . . . . . Targets Rammed . | . . . . . Kicked . | . . . . . Crushed . | . . . . . Highest Temperature 72 | . . 7 . 72 Average Temperature 19 | . . 5 . 40 Received Heat Transfer 196 | . . 36 . 160 Siege Activations . | . . . . . Robots Corrupted . | . . . . . Combat Hostiles . | . . . . . Parts Fried . | . . . . . Impact Corruptions . | . . . . . Robots Melted . | . . . . . Combat Hostiles . | . . . . . Parts Melted . | . . . . . Heat Transferred 150 | . . 150 . . Parts Sabotaged . | . . . . . Parts Stolen . | . . . . . Parts Stripped . | . . . . . Power Chain Reactions 1 | . . 1 . . Missiles Intercepted . | . . . . . Alert | -11 -10 -10 -10 -9 ------- Run | Scr Mat Min Exi Min Peak Influence 184 | 5 184 136 . . Initial 71 | . 3 71 . . Average 44 | . 96 31 . . Maximum Alert Level . | . . . . . Low Security (%) 100 | 100 100 100 . 100 Level 1 . | . . . . . Level 2 . | . . . . . Level 3 . | . . . . . Level 4 . | . . . . . Level 5 . | . . . . . High Security . | . . . . . Max Security . | . . . . . Squads Dispatched 1 | . 1 . . . Investigation 1 | . 1 . . . Extermination . | . . . . . Reinforcement . | . . . . . Assault . | . . . . . Garrison . | . . . . . Intercept . | . . . . . Construction Impeded . | . . . . . Haulers Reinforced . | . . . . . Stealth | -11 -10 -10 -10 -9 --------- Run | Scr Mat Min Exi Min Distress Signals . | . . . . . Communications Jammed . | . . . . . Distress Signals . | . . . . . Times Spotted 29 | . 7 2 . 20 Peak Tracking Total 20 | . 4 2 . 20 Tactical Retreats 2 | . 1 . . 1 Traps | -11 -10 -10 -10 -9 ------- Run | Scr Mat Min Exi Min Traps Triggered 1 | . 1 . . . Indirectly . | . . . . . Trap Hack Attempts . | . . . . . Triggered . | . . . . . Disarmed . | . . . . . Reprogrammed . | . . . . . Reused 1 | . . . . 1 Traps Extracted . | . . . . . Installed 1 | . . . . 1 Triggered . | . . . . . Exploded 1 | . . . . 1 Machines | -11 -10 -10 -10 -9 ---------- Run | Scr Mat Min Exi Min Machines Disabled 1 | . 1 . . . Max in Single Turn 1 | . 1 . . . Machines Sabotaged . | . . . . . Garrisons Compromised . | . . . . . Overloaded Fab Kills . | . . . . . Fab Network Shutdowns . | . . . . . Hacking | -11 -10 -10 -10 -9 --------- Run | Scr Mat Min Exi Min Machines Accessed 7 | . 5 . 2 . Terminals 3 | . 3 . . . Fabricators . | . . . . . Repair Stations . | . . . . . Recycling Units 2 | . 2 . . . Scanalyzers . | . . . . . Garrison Access . | . . . . . Total Hacks 12 | . 10 . 2 . Successful 7 | . 5 . 2 . Failed 5 | . 5 . . . Catastrophic 1 | . 1 . . . Database Lockouts . | . . . . . Manual 3 | . 2 . 1 . Terminals 7 | . 7 . . . Fabricators . | . . . . . Repair Stations . | . . . . . Recycling Units 3 | . 3 . . . Scanalyzers . | . . . . . Garrison Access . | . . . . . Terminal Hacks 5 | . 3 . 2 . Record 1 | . . . 1 . Locate Traps 1 | . 1 . . . Registered Components 1 | . 1 . . . Zone Layout 1 | . 1 . . . EX-Prototype ID Bank 1 | . . . 1 . Fabricator Hacks . | . . . . . Repair Station Hacks . | . . . . . Recycling Unit Hacks 2 | . 2 . . . Retrieve Components 2 | . 2 . . . Scanalyzer . | . . . . . Garrison Access Hacks . | . . . . . Unauthorized Hacks . | . . . . . Terminals . | . . . . . Fabricators . | . . . . . Repair Stations . | . . . . . Recycling Units . | . . . . . Scanalyzers . | . . . . . Garrison Access . | . . . . . Data Cores Recovered . | . . . . . Used . | . . . . . Hacking Detections 4 | . 4 . . . Full Trace Events . | . . . . . Feedback Events . | . . . . . Feedback Blocked . | . . . . . Robot Schematics Acquired . | . . . . . Robots Built . | . . . . . Matter . | . . . . . Time . | . . . . . Total Robot Build Rating . | . . . . . Part Schematics Acquired . | . . . . . Parts Built . | . . . . . Matter . | . . . . . Time . | . . . . . Total Part Build Rating . | . . . . . Parts Repaired . | . . . . . Time . | . . . . . Parts Recycled . | . . . . . Recycled Matter . | . . . . . Retrieved Matter . | . . . . . Retrieved Components 5 | . 5 . . . Parts Scanalyzed . | . . . . . Part Schematics Acquired . | . . . . . Parts Damaged . | . . . . . Bothacking | -11 -10 -10 -10 -9 ------------ Run | Scr Mat Min Exi Min Used RIF Installer . | . . . . . Robots Hacked . | . . . . . Non-combat . | . . . . . Combat . | . . . . . Robot Hacks Applied . | . . . . . Relay Couplers Released . | . . . . . Robots Rewired . | . . . . . Allies Hacked . | . . . . . Hacks Repelled . | . . . . . Allies | -11 -10 -10 -10 -9 -------- Run | Scr Mat Min Exi Min Total Allies 4 | . . 1 . 3 Largest Group 3 | . . 1 . 3 Highest-Rated Group 40 | . . 31 . 40 Highest-Rated Ally 31 | . . 31 . 16 Total Orders . | . . . . . Ally Attacks 8 | . . . . 8 Total Damage 72 | . . . . 72 Kills 2 | . . . . 2 Allies Corrupted . | . . . . . Allies Melted . | . . . . . Intel | -11 -10 -10 -10 -9 ------- Run | Scr Mat Min Exi Min Robot Analysis Total . | . . . . . Derelict Logs Recovered 2 | . . 2 . . Drone Launches . | . . . . . Drone Recoveries . | . . . . . Exploration | -11 -10 -10 -10 -9 ------------- Run | Scr Mat Min Exi Min Turns Passed 2033 | 67 365 1166 415 20 Spaces Moved 1398 | 46 246 759 340 7 Core 12 | 12 . . . . Treads . | . . . . . Legs 1120 | 34 246 759 81 . Wheels 266 | . . . 259 7 Hover . | . . . . . Flight . | . . . . . Fastest Speed 50 | 50 120 150 100 100 Average Speed 135 | 101 124 150 117 101 Slowest Speed 180 | 120 150 150 180 110 Overloaded Moves . | . . . . . Propulsion Burnouts . | . . . . . Robots Hopped . | . . . . . Cave-ins Triggered . | . . . . . Exploration Rate (%) 45 | 4 46 99 70 7 Regions Visited 4 Branch Regions 3 Pre-discovered Areas 1 | . . . 1 . Known Exits Taken . | . . . . . Unknown Exits Taken 4 | 1 1 1 1 . Scrap Searched . | . . . . . Spaces Dug 8 | . 8 . . . Terrain Destroyed 31 | . 8 23 . . Melee . | . . . . . Projectile . | . . . . . AOE 31 | . 8 23 . . Terrain Rammed . | . . . . . Walls Destroyed . | . . . . . Machines Disabled . | . . . . . Actions | -11 -10 -10 -10 -9 --------- Run | Scr Mat Min Exi Min Total 1498 | 62 289 771 355 21 Wait 22 | 6 14 1 . 1 Move 1394 | 45 245 758 339 7 Hop . | . . . . . Pick Up 20 | 4 8 2 6 . Fast Attach 8 | 6 2 . . . Attach 1 | . . . . 1 Detach 4 | . 1 . . 3 Swap 12 | . 3 2 5 2 Drop 16 | . 6 . 5 5 Fire 20 | 1 10 8 . 1 Melee . | . . . . . Ram . | . . . . . Kick . | . . . . . Crush . | . . . . . Escape Stasis . | . . . . . Rewire . | . . . . . Trap 1 | . . . . 1 Miscellaneous . | . . . . . Route ------- -11/Scrapyard -10/Materials (discovered 3 exits: [*Mat x2] / [*Min]) -10/Mines (discovered 3 exits: [*Mat x2] / *Exi) -10/Exiles -9/Mines History --------- Turn | Location | Event 10 | -11/Scrapyard | Discovered new exit (range 14) 68 | -11/Scrapyard | Entered Materials 186 | -10/Materials | Discovered new exit (range 15) 310 | -10/Materials | Build established: Mutant 364 | -10/Materials | Discovered new exit (range 13) 402 | -10/Materials | Discovered new exit (range 11) 433 | -10/Materials | Entered Mines 463 | -10/Mines | Found a hidden stash of uninstalled traps 788 | -10/Mines | Learned location of 1 exit from Materials 1127 | -10/Mines | Received a Mining Laser from a helpful Derelict 1142 | -10/Mines | Discovered new exit (range 14) 1251 | -10/Mines | Discovered new exit (range 5) 1593 | -10/Mines | Deemed a non-threat by the Exiles lab entrance 1593 | -10/Mines | Discovered new exit (range 5) 1599 | -10/Mines | Entered Exiles 1656 | -10/Exiles | Met 8R-AWN 1683 | -10/Exiles | Met EX-HEX 1785 | -10/Exiles | Met EX-DEC 1803 | -10/Exiles | Learned location of Zion (-6) 1871 | -10/Exiles | Met EX-BIN 1885 | -10/Exiles | Aligned with FarCom system 1886 | -10/Exiles | Given EX-Vault access code 1911 | -10/Exiles | Opened EX-Vault 1919 | -10/Exiles | Found Skeleton Box 1943 | -10/Exiles | Warned to stay clear of 0b10 Research branches 2006 | -10/Exiles | Discovered new exit (range 10) 2014 | -10/Exiles | Left Exiles lab with Skeleton Box 2014 | -10/Exiles | Entered Mines 2015 | -9/Mines | Assembled infested the area 2017 | -9/Mines | Assisted by bots powering up and referring to "LRC-V3" 2030 | -9/Mines | Core integrity fell below 50% 2033 | -9/Mines | Core integrity fell below 20% 2034 | -9/Mines | Destroyed by Heavy Explosive Trap Last Messages --------------- 02017_ Trooper 2a: "Hello LRC-V3. What is your command?" 02017_ Mercenary 2a: "Hello LRC-V3. What is your command?" 02017_ Trooper 2b: "Hello LRC-V3. What is your command?" 02021_ Dropped Rigged Lgt. Fission Core. 02023_ Trooper 2a destroyed. 02025_ Rigged Lgt. Fission Core explodes. 02025_ as-37256 destroyed. 02025_ as-31617 destroyed. 02025_ Mercenary 2a destroyed. 02026_ Trooper 2b destroyed. 02028_ as-79291 destroyed. 02029_ Dropped Heavy Explosive Trap. 02030_ Installed Heavy Explosive Trap. 02031_ Dropped Hcp. Matter Pod. 02031_ EM Pulse Gun destroyed. 02032_ Dropped Lrg. Storage Unit. 02034_ Ion Engine destroyed. 02034_ as-51384 triggered Heavy Explosive Trap. 02034_ An explosion rips through the floor. 02034_ as-51384 destroyed. Map ----- +----------------------------------------------------+ | | | ???????????????????????????????????????? | | ???????????????????????????????????????? | | ???????????????????????????????????????? | | ???????????????????????????????????????? | | ???????????????????????????????????????? | | ???????????????????????????????????????? | | ???????????????????????????????????????? | | ???????????????????????????????????????? | | ???????????????????????????????????????? | | ???????????????????????????????????????? | | ???????????????????????????????????????? | | ???????????????????????????????????????? | | ???????# ??????????????????????????????? | | ???????# ##????????????????????????????? | | ???????? u #???????????????????????????? | | ???????? ##?????????????????????????? | | ????????? ?????????????????????????? | | ?????????? $ ?????????????????????????? | | ??????????? ?????????????????????????? | | ??????????? ????????????????????????? | | ???????????? ????????????????????????? | | ????????????? ????????????????????????? | | ???????????### ###?????????????????????? | | ???????????#%a% #?????????????????????? | | ???????????#* a@#??????????????????????? | | ??????????##%=a ;##????????????????????? | | ??????????#=!a #????????????????????? | | ??????????# a%%aa#????????????????????? | | ??????????# a ##### #???????????? | | ??????????# a #???????????? | | ??????????# a #??????????? | | ??????????# ### ???????? | | ??????????#########??? ### ???????? | | ??????????????????????? ##???????????? | | ???????????????????????? ##????????????? | | ?????????????????????????#?????????????? | | ???????????????????????????????????????? | | ?????????C?????????????????????????????? | | ???????????????????????????????????????? | | ???????????????????????????????????????? | | ???????????????????????????????????????? | | ???????????????????????????????????????? | | ???????????????????????????????????????? | | ???????????????????????????????????????? | | ???????????????????????????????????????? | | ???????????????????????????????????????? | | ???????????????????????????????????????? | | ???????????????????????????????????????? | | ???????????????????????????????????????? | +----------------------------------------------------+ Best States ------------- Heat Dissipation 25 Energy Generation 10 Energy Capacity 250 Matter Stores 300 Matter Capacity 300 Sight Range 16 Terrain Scan Range 14 Terrain Scan Density 10 Propulsion Shielding 33 Evasion (%) 50 Item Schematics ----------------- None Robot Schematics ------------------ None Fabricated ------------ Nothing Alien Tech Used ----------------- None Achievements -------------- None Challenges ------------ None Game ------ Seed CouplerBeamBeam Manual? 0 Play Time 00:18:51 Cumulative 425.6 hours Start 2021.05.05 @ 21:14:50 End 2021.05.06 @ 18:10:50 Sessions 2 Manual Loads 0 Difficulty Rogue Special Mode None Game No. 159 Rogue 123 Adventurer 36 Explorer 0 Win Type - Total 12 Types 12/0/0/0/0/0/0/0/0 Lore% 55 Gallery% 60 Achievement% 44 Wizard Run 0 Options --------- ASCII 0 Keyboard 1 Movement Vi Keybinds 0 Fullscreen 1 Font 18/Terminus Map View 76x50 Tactical HUD 1 Map Filters NONE Filters NONE Steam 0 RUN: 776261a8-5ffa-4a19-81ce-b0f8b3268a1b